[Event "16th Baltic Pearl Open"]
[Site "Lazy"]
[Date "2020.07.06"]
[Round "9.3"]
[White "Mis, Mieszko"]
[Black "Kopaczewski, Adam"]
[Result "1-0"]
[ECO "D36"]
[WhiteElo "2332"]
[BlackElo "2059"]
[Annotator "ChessBase"]
[PlyCount "61"]
[EventDate "2020.06.28"]
[EventType "swiss"]
[EventCountry "POL"]
[SourceTitle "playchess.com"]
[Source "ChessBase"]
[SourceQuality "1"]
[TimeControl "5400+30"]

1. d4 {[%emt 1:30:30]} Nf6 {[%emt 1:30:30]} 2. Nf3 {[%emt 0:00:30]} e6 {[%emt 0:00:30]} 3. c4 {[%emt 0:00:30]} d5 {[%emt 0:00:30]} 4. Nc3 {[%emt 0:00:30]} c6 {[%emt 0:00:30]} 5. cxd5 {[%emt 0:00:30]} exd5 {[%emt 0:00:30]} 6. Bg5 {[%emt 0:00:30]} Be7 {[%emt 0:00:30]} 7. Qc2 {[%emt 0:00:30]} O-O {[%emt 0:00:30]} 8. e3 {[%emt 0:00:30]} Ne4 {[%emt 0:00:30]} 9. Bf4 {[%emt 0:00:30]} Qa5 {[%emt 0:00:30]} 10. Bd3 {[%emt 0:00:30]} f5 {[%emt 0:00:30]} 11. O-O {[%emt 0:00:30]} Nd7 {[%emt 0:00:30]} 12. h3 {[%emt 0:00:30]} Ndf6 {[%emt 0:00:30]} 13. Ne5 {[%emt 0:00:30]} Be6 {[%emt 0:00:30]} 14. f3 {[%emt 0:00:30]} Nd6 {[%emt 0:00:30]} 15. g4 {[%emt 0:00:30]} Nd7 {[%emt 0:00:30]} 16. Ne2 {[%emt 0:00:30]} Qd8 {[%emt 0:00:30]} 17. Ng3 {[%emt 0:00:30]} Qc8 {[%emt 0:00:30]} 18. Kh1 {[%emt 0:00:30]} Nb6 {[%emt 0:00:30]} 19. Rg1 {[%emt 0:00:30]} Kh8 {[%emt 0:00:30]} 20. Qh2 {[%emt 0:00:30]} c5 {[%emt 0:00:30]} 21. Nh5 {[%emt 0:00:30]} c4 {[%emt 0:00:30]} 22. Bc2 {[%emt 0:00:30]} Bf6 {[%emt 0:00:30]} 23. g5 {[%emt 0:00:30]} Bxe5 {[%emt 0:00:30]} 24. Bxe5 {[%emt 0:00:30]} Ne8 {[%emt 0:00:30]} 25. g6 {[%emt 0:00:30]} Nd7 {[%emt 0:00:30]} 26. gxh7 {[%emt 0:00:30]} Rf7 {[%emt 0:00:30]} 27. Qg3 {[%emt 0:00:30]} Nxe5 {[%emt 0:00:30]} 28. dxe5 {[%emt 0:00:30]} Qd8 {[%emt 0:00:30]} 29. Nf4 {[%emt 0:00:30]} Nc7 {[%emt 0:00:30]} 30. Qg6 {[%emt 0:00:30]} Qe7 {[%emt 0:00:30]} 31. Qh5 {[%emt 0:00:30]} 1-0

[Event "16th Baltic Pearl Open"]
[Site "Lazy"]
[Date "2020.07.06"]
[Round "9.4"]
[White "Bilczewski, Kacper"]
[Black "Luch, Michal"]
[Result "0-1"]
[ECO "B22"]
[WhiteElo "2128"]
[BlackElo "2409"]
[Annotator "ChessBase"]
[PlyCount "44"]
[EventDate "2020.06.28"]
[EventType "swiss"]
[EventCountry "POL"]
[SourceTitle "playchess.com"]
[Source "ChessBase"]
[SourceQuality "1"]
[TimeControl "5400+30"]

1. e4 {[%emt 1:30:30]} c5 2. c3 {[%emt 0:00:30]} Nf6 {[%emt 1:31:00]} 3. e5 {[%emt 0:00:30]} Nd5 {[%emt 0:00:30]} 4. d4 {[%emt 0:00:30]} cxd4 {[%emt 0:00:30]} 5. cxd4 {[%emt 0:00:30]} d6 {[%emt 0:00:30]} 6. Bc4 {[%emt 0:00:30]} Nb6 {[%emt 0:00:30]} 7. Bb5+ {[%emt 0:00:30]} Bd7 {[%emt 0:00:30]} 8. e6 {[%emt 0:00:30]} fxe6 {[%emt 0:00:30]} 9. Bd3 {[%emt 0:00:30]} g6 {[%emt 0:00:30]} 10. Qg4 {[%emt 0:00:30]} Bg7 {[%emt 0:00:30]} 11. h4 {[%emt 0:00:30]} Nd5 {[%emt 0:00:30]} 12. h5 {[%emt 0:00:30]} Qa5+ {[%emt 0:00:30]} 13. Nd2 {[%emt 0:00:30]} Nf6 {[%emt 0:00:30]} 14. Qf3 {[%emt 0:00:30]} Nxh5 {[%emt 0:00:30]} 15. Qxb7 {[%emt 0:00:30]} Bc6 {[%emt 0:00:30]} 16. Qb3 {[%emt 0:00:30]} Nf4 {[%emt 0:00:30]} 17. Ngf3 {[%emt 0:00:30]} Nxg2+ {[%emt 0:00:30]} 18. Kf1 {[%emt 0:00:30]} Nf4 {[%emt 0:00:30]} 19. Nc4 {[%emt 0:00:30]} Qd5 {[%emt 0:00:30]} 20. Bxf4 {[%emt 0:00:30]} Qxf3 {[%emt 0:00:30]} 21. Rxh7 {[%emt 0:00:30]} Qg2+ {[%emt 0:00:30]} 22. Ke1 Rxh7 {[%emt 0:00:30]} 0-1